{"text_format":"1","workbook":"xlsx","n_sheets":12,"sheets":["Przegląd dokumentów","Info","Oś czasu projektu","Postęp etapów","Plan komunikacji","Wykonanie budżetu","Monitoring","Dziennik","Lista ryzyk","Lista zmian","Zadania do wykonania","Zagadnienia projektowe"],"not_rendered":{"charts":2,"images":2,"macros":1,"external_links":3,"defined_names":89,"comments":5,"pivot_tables":0},"unopened":[],"bounds":{"document_bytes":16777216,"sheet_cells":100000,"rows_first":2000,"rows_last":500,"rows_between":2000,"halvings":0,"cell_chars":16384,"cell_head_chars":4096},"cells_cut":0,"cells_raw":0,"read":"whole","date_system":"1900"}

{"sheet":"Przegląd dokumentów","index":0,"n_rows":17,"n_cols":4,"rows_kept":17,"cut":false,"hidden":false,"merged":[]}
[null,"Przegląd dokumentów"]
[]
[null,"Projekt","OZP","Zakres dokumentu"]
[null,"Komitet Sterujacy",null,"Skład Komitetu Sterującego."]
[null,"Interesariusze",null,"Interesariusze projketu."]
[null,"Zespół wdrożeniowy",null,"Zespół odpowiedzialny za wdrożenie projektu."]
[null,"Cele projektu",null,"Cele strategiczne oraz biznesowe projektu."]
[null,"Oś czasu projektu",null,"Kamienie milowe w projekcie."]
[null,"Postęp prac w projekcie",null,"Procentowy postęp prac w poszczególnych etapach projketu."]
[null,"Plan komunikacji",null,"Macierz określająca kategorie informacji wraz ze wskazaniem osób zainteresowanych otrzymywaniem tych informacji oraz sposobem jej przekazywania w ustalonym cyklu."]
[null,"Wykonanie bużdetu",null,"Informacja o wykonaniu budżetu."]
[null,"Monitoring",null,"Odchylenie harmonogramu."]
[null,"Dziennik",null,"Podsumowanie prac w projekcie w cyklu tygodniowym."]
[null,"Lista ryzyk",null,"Ryzyka zewnetrzne oraz wewnętrzne zidentyfikowane w projekcie wraz z informacją o reakcji na ryzyko."]
[null,"Lista zmian",null,"Zgłoszone zmiany oraz rozszerzenia zakresu wraz z informacją o wpływie na czas i koszt."]
[null,"Zadania do wykonania",null,"Lista zadań do wykonania przez wskazanych Interesariuszy projketu wraz z informacją o statusie zadania."]
[null,"Zagadnienia projektowe",null,"Opis zdarzeń w projekcie, które wymagają rozwiązania. Mogą wpłynąć na czas, koszt, jakość, zakres, ryzyko."]

{"sheet":"Info","index":1,"n_rows":31,"n_cols":10,"rows_kept":31,"cut":false,"hidden":false,"merged":[[26,4,26,7],[28,4,28,7],[29,4,29,7],[30,4,30,7],[26,1,26,3],[27,1,27,3],[28,1,28,3],[29,1,29,3],[30,1,30,3],[20,1,20,3],[20,4,20,7],[21,4,21,7],[21,1,21,3],[25,1,25,3],[22,4,22,7],[23,1,23,3],[23,4,23,7],[24,1,24,3],[24,4,24,7],[22,1,22,3],[25,4,25,7],[17,1,17,7],[18,1,18,3],[18,4,18,7],[19,1,19,3],[19,4,19,7],[14,1,14,3],[14,4,14,7],[15,1,15,3],[15,4,15,7],[11,4,11,7],[12,4,12,7],[13,4,13,7],[8,1,8,3],[8,4,8,7],[9,1,9,3],[9,4,9,7],[11,1,11,3],[10,4,10,7],[10,1,10,3],[4,1,4,3],[4,4,4,7],[5,1,5,3],[5,4,5,7],[7,1,7,7],[1,1,1,7],[2,1,2,3],[2,4,2,7],[3,1,3,3],[3,4,3,7],[10,10,10,17],[11,10,11,17],[1,9,1,17],[2,10,2,17],[3,10,3,17],[4,10,4,17],[7,9,7,17],[9,10,9,17]]}
[null,"Info"]
[null,"KOMITET STERUJĄCY",null,null,null,null,null,null,null,"CEL STRATEGICZNY PROJEKTU"]
[null,"IMIĘ I NAZWISKO",null,null,"FUNKCJA",null,null,null,null,"Lp."]
[null,"Jan Kowalski",null,null,"Członek Zarządu po stronie Zamawiajacego",null,null,null,null,1]
[null,null,null,null,null,null,null,null,null,2]
[null,null,null,null,null,null,null,null,null,3]
[]
[null,"INTERESARIUSZE",null,null,null,null,null,null,null,"CEL BIZNESOWY PROJEKTU"]
[null,"KOMÓRKA ORGANIZACYJNA / GRUPA ODBIORCÓW",null,null,"PRZEDSTAWICIELE (IMIĘ I NAZWISKO)",null,null,null,null,"Lp. "]
[null,"Dział Sprzedaży",null,null,"Jan Nowak",null,null,null,null,1]
[null,"Interesariusz 2",null,null,null,null,null,null,null,2]
[null,"Interesariusz 3",null,null,null,null,null,null,null,3]
[null,"Interesariusz 4"]
[]
[]
[]
[]
[null,"ZESPÓŁ WDROŻENIOWY"]
[null,"IMIĘ I NAZWISKO",null,null,"ROLA"]
[null,"Anna Nowak",null,null,"Project Manager"]
[null,null,null,null,"Team Leader"]
[null,null,null,null,"Analityk"]
[null,null,null,null,"UX Projektant"]
[null,null,null,null,"Główny Programista PHP"]
[null,null,null,null,"Programista PHP"]
[null,null,null,null,"Programista PHP"]
[null,null,null,null,"Programista PHP"]
[null,null,null,null,"Główny Programista .Net"]
[null,null,null,null,"Programista .Net"]
[null,null,null,null,"Główny Edytor"]
[null,null,null,null,"Edytor"]

{"sheet":"Oś czasu projektu","index":2,"n_rows":30,"n_cols":6,"rows_kept":30,"cut":false,"hidden":false,"merged":[[17,2,17,4]]}
[null,"Oś czasu projektu"]
[]
[]
[]
[]
[]
[]
[]
[]
[]
[]
[]
[]
[]
[]
[]
[]
[null,null,"PUNKTY KONTROLNE PROJEKTU"]
[null,null,"DATA","PUNKT KONTROLNY","POŁOŻENIE","PLAN BAZOWY"]
[null,null,"01-04-2016","Rozpoczęcie projektu",25,{"$f":"1","v":1}]
[null,null,"30-06-2016","    Analiza i projektowanie",-10,{"$f":"1","v":1}]
[null,null,"30-07-2016","    Wdrożenie HTML",10,{"$f":"1","v":1}]
[null,null,"30-10-2016","     Etap I ",null,{"$f":"1","v":1}]
[null,null,"30-09-2016","               Implementacja",-10,{"$f":"1","v":1}]
[null,null,"10-10-2016","               Integracja ",10,{"$f":"1","v":1}]
[null,null,"30-10-2016","               Testy i stabilizacja",-10,{"$f":"1","v":1}]
[null,null,"31-12-2016","     Etap II ",null,{"$f":"1","v":1}]
[null,null,"30-11-2016","               Implementacja",10,{"$f":"1","v":1}]
[null,null,"30-12-2016","               Testy i stabilizacja",-10,{"$f":"1","v":1}]
[null,null,"31-12-2016","Wdrożenie",25,{"$f":"1","v":1}]

{"sheet":"Postęp etapów","index":3,"n_rows":14,"n_cols":7,"rows_kept":14,"cut":false,"hidden":false,"merged":[]}
[null,"Postęp prac w projekcie"]
[]
[null,"Projekt","  ","Postęp"," Rozpoczęcie"," Zakończenie","Uwagi"]
[null,"Projekt [nazwa projektu]",0.2,{"$f":"REPT(\"|\",Projekty5[[  ]]*175)","v":"|||||||||||||||||||||||||||||||||||"},null,{"$f":"'Oś czasu projektu'!C20","v":"01-04-2016"}]
[null,{"$f":"'Oś czasu projektu'!D21","v":"    Analiza i projektowanie"},1,{"$f":"REPT(\"|\",Projekty5[[  ]]*175)","v":"|||||||||||||||||||||||||||||||||||||||||||||||||||||||||||||||||||||||||||||||||||||||||||||||||||||||||||||||||||||||||||||||||||||||||||||||||||||||||||||||||||||||||||||||"},null,{"$f":"'Oś czasu projektu'!C21","v":"30-06-2016"}]
[null,{"$f":"'Oś czasu projektu'!D22","v":"    Wdrożenie HTML"},1,{"$f":"REPT(\"|\",Projekty5[[  ]]*175)","v":"|||||||||||||||||||||||||||||||||||||||||||||||||||||||||||||||||||||||||||||||||||||||||||||||||||||||||||||||||||||||||||||||||||||||||||||||||||||||||||||||||||||||||||||||"},null,{"$f":"'Oś czasu projektu'!C22","v":"30-07-2016"}]
[null,{"$f":"'Oś czasu projektu'!D23","v":"     Etap I "},0.4,{"$f":"REPT(\"|\",Projekty5[[  ]]*175)","v":"||||||||||||||||||||||||||||||||||||||||||||||||||||||||||||||||||||||"},null,{"$f":"'Oś czasu projektu'!C23","v":"30-10-2016"}]
[null,{"$f":"'Oś czasu projektu'!D24","v":"               Implementacja"},0.5,{"$f":"REPT(\"|\",Projekty5[[  ]]*175)","v":"|||||||||||||||||||||||||||||||||||||||||||||||||||||||||||||||||||||||||||||||||||||||"},null,{"$f":"'Oś czasu projektu'!C24","v":"30-09-2016"}]
[null,{"$f":"'Oś czasu projektu'!D25","v":"               Integracja "},0.3,{"$f":"REPT(\"|\",Projekty5[[  ]]*175)","v":"||||||||||||||||||||||||||||||||||||||||||||||||||||"},null,{"$f":"'Oś czasu projektu'!C25","v":"10-10-2016"}]
[null,{"$f":"'Oś czasu projektu'!D26","v":"               Testy i stabilizacja"},0,{"$f":"REPT(\"|\",Projekty5[[  ]]*175)","v":""},null,{"$f":"'Oś czasu projektu'!C26","v":"30-10-2016"}]
[null,{"$f":"'Oś czasu projektu'!D27","v":"     Etap II "},0,{"$f":"REPT(\"|\",Projekty5[[  ]]*175)","v":""},null,{"$f":"'Oś czasu projektu'!C27","v":"31-12-2016"}]
[null,{"$f":"'Oś czasu projektu'!D28","v":"               Implementacja"},0,{"$f":"REPT(\"|\",Projekty5[[  ]]*175)","v":""},null,{"$f":"'Oś czasu projektu'!C28","v":"30-11-2016"}]
[null,{"$f":"'Oś czasu projektu'!D29","v":"               Testy i stabilizacja"},0,{"$f":"REPT(\"|\",Projekty5[[  ]]*175)","v":""},null,{"$f":"'Oś czasu projektu'!C29","v":"30-12-2016"}]
[null,{"$f":"'Oś czasu projektu'!D30","v":"Wdrożenie"},0,{"$f":"REPT(\"|\",Projekty5[[  ]]*175)","v":""},null,{"$f":"'Oś czasu projektu'!C30","v":"31-12-2016"}]

{"sheet":"Plan komunikacji","index":4,"n_rows":12,"n_cols":14,"rows_kept":12,"cut":false,"hidden":false,"merged":[[1,3,1,6]]}
[null,"Plan Komunikacji"]
[null,null,null,"Interesariusze"]
[null,"Rodzaj informacji","PM","Dział Sprzedaży","Interesariusz 2","Interesariusz 3","Interesariusz 4","Dokument","OZP","Cykl","Kanał komunikacji","Uwagi"]
[null,"\nZagadnienia techniczne zewnętrzne","X",null,null,null,"X",null,null,null,null,null,null,"Dzienny"]
[null,"Zagadnienia techniczne wewnętrzne","X",null,"X",null,null,null,null,null,null,null,null,"Tygodniowy"]
[null,"Zwiększenie / zmiana zakresu","X","X","X","X","X","Lista Zmian",null,null,null,null,null,"2-tygodniowy"]
[null,"Zasoby","X","X",null,null,null,null,null,null,null,null,null,"Miesięczny"]
[null,"Wykonanie budżetu","X","X",null,null,"X","Dziennik projektu"]
[null,"Harmonogram","X","X","X","X","X","Dziennik projektu / Plik MPP"]
[null,"Ryzyka zewnętrzne","X","X",null,"X","X","Lista Ryzyk"]
[null,"Ryzyka wewnętrzne","X","X","X","X",null,"Lista Ryzyk"]
[null,"Postęp prac","X","X","X","X","X","Dziennik Projektu / Plik MPP"]

{"sheet":"Wykonanie budżetu","index":5,"n_rows":18,"n_cols":10,"rows_kept":18,"cut":false,"hidden":false,"merged":[]}
[null,"Wykonanie budżetu"]
[]
[null,"Tytuł faktury","Data","Kwota faktury","Faktury nar.","Budżet projektu","Budżet proj. nar.","Koszt zasobów","Koszt zasobów nar.","Rentowność"]
[null,"Faktura 1","30-04-2016",10000,{"$f":"Projekty537[[#This Row],[Kwota faktury]]","v":10000},{"$f":"Projekty537[[#This Row],[Kwota faktury]]*0.7","v":7000},{"$f":"Projekty537[[#This Row],[Budżet projektu]]","v":7000},9000,{"$f":"Projekty537[[#This Row],[Koszt zasobów]]","v":9000},{"$f":"(Projekty537[[#This Row],[Budżet proj. nar.]]-Projekty537[[#This Row],[Koszt zasobów nar.]])/Projekty537[[#This Row],[Budżet proj. nar.]]","v":-0.2857142857142857}]
[null,"Faktura 2","31-05-2016",5000,{"$f":"Projekty537[[#This Row],[Kwota faktury]]+E4","v":15000},{"$f":"Projekty537[[#This Row],[Kwota faktury]]*0.7","v":3500},{"$f":"Projekty537[[#This Row],[Budżet projektu]]+G4","v":10500},4500,{"$f":"Projekty537[[#This Row],[Koszt zasobów]]+I4","v":13500},{"$f":"(Projekty537[[#This Row],[Budżet proj. nar.]]-Projekty537[[#This Row],[Koszt zasobów nar.]])/Projekty537[[#This Row],[Budżet proj. nar.]]","v":-0.2857142857142857}]
[null,"Faktura 3","30-06-2016",5000,{"$f":"Projekty537[[#This Row],[Kwota faktury]]+E5","v":20000},{"$f":"Projekty537[[#This Row],[Kwota faktury]]*0.7","v":3500},{"$f":"Projekty537[[#This Row],[Budżet projektu]]+G5","v":14000},4000,{"$f":"Projekty537[[#This Row],[Koszt zasobów]]+I5","v":17500},{"$f":"(Projekty537[[#This Row],[Budżet projektu]]-Projekty537[[#This Row],[Koszt zasobów]])/Projekty537[[#This Row],[Budżet projektu]]","v":-0.14285714285714285}]
[null,"Faktura 4","31-07-2016",20000,{"$f":"Projekty537[[#This Row],[Kwota faktury]]+E6","v":40000},{"$f":"Projekty537[[#This Row],[Kwota faktury]]*0.7","v":14000},{"$f":"Projekty537[[#This Row],[Budżet projektu]]+G6","v":28000},10000,{"$f":"Projekty537[[#This Row],[Koszt zasobów]]+I6","v":27500},{"$f":"(Projekty537[[#This Row],[Budżet projektu]]-Projekty537[[#This Row],[Koszt zasobów]])/Projekty537[[#This Row],[Budżet projektu]]","v":0.2857142857142857}]
[null,"Faktura 5","31-08-2016",null,{"$f":"Projekty537[[#This Row],[Kwota faktury]]+E7","v":40000},{"$f":"Projekty537[[#This Row],[Kwota faktury]]*0.7","v":0},{"$f":"Projekty537[[#This Row],[Budżet projektu]]+G7","v":28000},null,{"$f":"Projekty537[[#This Row],[Koszt zasobów]]+I7","v":27500},{"$f":"(Projekty537[[#This Row],[Budżet projektu]]-Projekty537[[#This Row],[Koszt zasobów]])/Projekty537[[#This Row],[Budżet projektu]]","v":{"$error":"#DIV/0!"}}]
[null,"Faktura 6","30-09-2016",null,{"$f":"Projekty537[[#This Row],[Kwota faktury]]+E8","v":40000},{"$f":"Projekty537[[#This Row],[Kwota faktury]]*0.7","v":0},{"$f":"Projekty537[[#This Row],[Budżet projektu]]+G8","v":28000},null,{"$f":"Projekty537[[#This Row],[Koszt zasobów]]+I8","v":27500},{"$f":"(Projekty537[[#This Row],[Budżet projektu]]-Projekty537[[#This Row],[Koszt zasobów]])/Projekty537[[#This Row],[Budżet projektu]]","v":{"$error":"#DIV/0!"}}]
[null,"Faktura 7","30-10-2016",null,{"$f":"Projekty537[[#This Row],[Kwota faktury]]+E9","v":40000},{"$f":"Projekty537[[#This Row],[Kwota faktury]]*0.7","v":0},{"$f":"Projekty537[[#This Row],[Budżet projektu]]+G9","v":28000},null,{"$f":"Projekty537[[#This Row],[Koszt zasobów]]+I9","v":27500},{"$f":"(Projekty537[[#This Row],[Budżet projektu]]-Projekty537[[#This Row],[Koszt zasobów]])/Projekty537[[#This Row],[Budżet projektu]]","v":{"$error":"#DIV/0!"}}]
[null,"Faktura 8","30-11-2016",null,{"$f":"E10+Projekty537[[#This Row],[Kwota faktury]]","v":40000},{"$f":"Projekty537[[#This Row],[Kwota faktury]]*0.7","v":0},{"$f":"Projekty537[[#This Row],[Budżet projektu]]+G10","v":28000},null,{"$f":"Projekty537[[#This Row],[Koszt zasobów]]","v":0},{"$f":"(Projekty537[[#This Row],[Budżet projektu]]-Projekty537[[#This Row],[Koszt zasobów]])/Projekty537[[#This Row],[Budżet projektu]]","v":{"$error":"#DIV/0!"}}]
[null,"Faktura 9","31-12-2016",null,{"$f":"Projekty537[[#This Row],[Kwota faktury]]+E10","v":40000},{"$f":"Projekty537[[#This Row],[Kwota faktury]]*0.7","v":0},{"$f":"Projekty537[[#This Row],[Budżet projektu]]+G11","v":28000},null,{"$f":"Projekty537[[#This Row],[Koszt zasobów]]+I10","v":27500},{"$f":"(Projekty537[[#This Row],[Budżet projektu]]-Projekty537[[#This Row],[Koszt zasobów]])/Projekty537[[#This Row],[Budżet projektu]]","v":{"$error":"#DIV/0!"}}]
[null,"Total: ",null,{"$f":"SUBTOTAL(109,D5:D12)","v":30000},null,{"$f":"SUBTOTAL(109,F5:F12)","v":21000},null,{"$f":"SUBTOTAL(109,H5:H12)","v":18500},null,{"$f":"(Projekty537[[#This Row],[Budżet projektu]]-Projekty537[[#This Row],[Koszt zasobów]])/Projekty537[[#This Row],[Budżet projektu]]","v":0.11904761904761904}]
[null,null,null,null,null,{"$f":"Projekty537[[#This Row],[Kwota faktury]]*0.7","v":0}]
[null,null,null,null,null,{"$f":"Projekty537[[#This Row],[Kwota faktury]]*0.7","v":0}]
[null,null,null,null,null,{"$f":"Projekty537[[#This Row],[Kwota faktury]]*0.7","v":0}]
[null,null,null,null,null,{"$f":"Projekty537[[#This Row],[Kwota faktury]]*0.7","v":0}]
[null,null,null,null,null,{"$f":"Projekty537[[#This Row],[Kwota faktury]]*0.7","v":0}]

{"sheet":"Monitoring","index":6,"n_rows":100,"n_cols":13,"rows_kept":100,"cut":false,"hidden":false,"merged":[]}
[null,null,"Monitoring"]
[]
[null,"Project","Zadanie","Link do zadania","Wykonawca","Est. czas","Zaraport. czas","Postęp","Est. czas. na podst. Postępu","Odchylenie",null,"LEGENDA"]
[null,"x","            Zadanie 1",null,"Programista 1",20,6,0.3,{"$f":"G4/H4","v":20},{"$f":"(I4-F4)/F4","v":0},null,"KOLUMNA","WYJAŚNIENIE"]
[null,"x","            Zadanie 2",null,"Programista 2",40,6,0.05,{"$f":"G5/H5","v":120},{"$f":"(I5-F5)/F5","v":2},null,"Zadanie","Nazwa zadania z WBS (WBS - struktura podziału pracy)"]
[null,null,"            Zadanie 3",null,"Programista 3",80,90,0.9,100,0.25,null,"Link do zadania","Odnośnik do zadania (jeśli istnieje)"]
[null,"x","            Zadanie 4",null,"Programista 2",10,8,1,8,-0.2,null,"Wykonawca","Osoba realizująca zadanie"]
[null,"x","            Zadanie 5",null,"Programista 1",5,6,1,6,0.2,null,"Est. czas","Planowany czas wykonania zadania"]
[null,null,"            Zadanie 6",null,"Programista 1",20,25,0.6,41.666666666666671,1.0833333333333335,null,"Zarapor. czas","Dotychczas zaraportowany czas na wykonania zadania"]
[null,"x","            Zadanie 7",null,"Programista 3",40,55,0.9,61.111111111111107,0.52777777777777768,null,"Postęp","Postęp procentowy zadania"]
[null,"x","            Zadanie 8",null,"Programista 1",10,6,0.3,20,1,null,"Est. czas. na podst. postępu","Estymowany łączny czas na wykonanie zadania na podstawie dotychczas zaraportowanego czasu i postępu (Zaraport. czas / Postęp)"]
[null,null,"            Zadanie 9",null,"Programista 3",50,10,0.3,33.333333333333336,-0.33333333333333326,null,"Odchylenie","Odchylenie powyżej / poniżej wartości planowanej (Est. czas)"]
[null,"x","            Zadanie 10",null,"Programista 4",100,20,0.2,100,0]
[null,"x",null,null," ",null,null,null,{"$error":"#DIV/0!"},{"$error":"#DIV/0!"},null,"REGUŁY"]
[null,"x",null,null,null,null,null,null,{"$error":"#DIV/0!"},{"$error":"#DIV/0!"},null,"KOLOR","WYJAŚNIENIE"]
[null,"x",null,null,null,null,null,null,{"$error":"#DIV/0!"},{"$error":"#DIV/0!"},null,"Zaraport. czas","jeśli dotychczas zaraportowany na zadanie czas jest mniejszy lub równy wartości estymowanej (Est. czas)"]
[null,null,null,null,null,null,null,null,{"$error":"#DIV/0!"},{"$error":"#DIV/0!"},null,"Zaraport. Czas","jeśli dotychczas zaraportowany na zadanie czas jest więszy niż wartość estymowana (Est. czas) oraz jest mniejszy niż 130% tej wartości "]
[null,null,null,null,null,null,null,null,{"$error":"#DIV/0!"},{"$error":"#DIV/0!"},null,"Zaraport. czas","jeśli dotychczas zaraportowany na zadanie czas jest więszy lub równy 130% wartości estymowanej (Est. czas)"]
[null,"x",null,null,null,null,null,null,{"$error":"#DIV/0!"},{"$error":"#DIV/0!"}]
[null,"x",null,null,null,null,null,null,{"$error":"#DIV/0!"},{"$error":"#DIV/0!"},null,"Est. czas","jeśli estymowany łączny czas na wykonanie zadania jest mniejszy lub równy wartości estymowanej (Est. czas)"]
[null,"x",null,null,null,null,null,null,{"$error":"#DIV/0!"},{"$error":"#DIV/0!"},null,"Est. Czas","jeśli estymowany łączny czas na wykonanie zadania jest więszy niż wartość estymowana (Est. czas) oraz jest mniejszy niż 130% tej wartości "]
[null,"x",null,null,null,null,null,null,{"$error":"#DIV/0!"},{"$error":"#DIV/0!"},null,"Est. czas","jeśli estymowany łączny czas na wykonanie zadania jest większy lub równy 130% wartości estymowanej (Est. czas)"]
[null,"x",null,null,null,null,null,null,{"$error":"#DIV/0!"},{"$error":"#DIV/0!"}]
[null,"x",null,null,null,null,null,null,{"$error":"#DIV/0!"},{"$error":"#DIV/0!"}]
[null,"x",null,null,null,null,null,null,{"$error":"#DIV/0!"},{"$error":"#DIV/0!"}]
[null,"x",null,null,null,null,null,null,{"$error":"#DIV/0!"},{"$error":"#DIV/0!"}]
[null,null,null,null,null,null,null,null,{"$error":"#DIV/0!"},{"$error":"#DIV/0!"}]
[null,null,null,null,null,null,null,null,{"$error":"#DIV/0!"},{"$error":"#DIV/0!"}]
[null,"x",null,null,null,null,null,null,{"$error":"#DIV/0!"},{"$error":"#DIV/0!"}]
[null,"x",null,null,null,null,null,null,{"$error":"#DIV/0!"},{"$error":"#DIV/0!"}]
[null,"x",null,null,null,null,null,null,{"$error":"#DIV/0!"},{"$error":"#DIV/0!"}]
[null,"x",null,null,null,null,null,null,{"$error":"#DIV/0!"},{"$error":"#DIV/0!"}]
[null,"x",null,null,null,null,null,null,{"$error":"#DIV/0!"},{"$error":"#DIV/0!"}]
[null,null,null,null,null,null,null,null,{"$error":"#DIV/0!"},{"$error":"#DIV/0!"}]
[null,"x",null,null,null,null,null,null,{"$error":"#DIV/0!"},{"$error":"#DIV/0!"}]
[null,"x",null,null,null,null,null,null,{"$error":"#DIV/0!"},{"$error":"#DIV/0!"}]
[null,null,null,null,null,null,null,null,{"$error":"#DIV/0!"},{"$error":"#DIV/0!"}]
[null,"x",null,null,null,null,null,null,{"$error":"#DIV/0!"},{"$error":"#DIV/0!"}]
[null,"x",null,null,null,null,null,null,{"$error":"#DIV/0!"},{"$error":"#DIV/0!"}]
[null,"x",null,null,null,null,null,null,{"$error":"#DIV/0!"},{"$error":"#DIV/0!"}]
[null,null,null,null,null,null,null,null,{"$error":"#DIV/0!"},{"$error":"#DIV/0!"}]
[null,"x",null,null,null,null,null,null,{"$error":"#DIV/0!"},{"$error":"#DIV/0!"}]
[null,"x",null,null,null,null,null,null,{"$error":"#DIV/0!"},{"$error":"#DIV/0!"}]
[null,"x",null,null,null,null,null,null,{"$error":"#DIV/0!"},{"$error":"#DIV/0!"}]
[null,"x",null,null,null,null,null,null,{"$error":"#DIV/0!"},{"$error":"#DIV/0!"}]
[null,"x",null,null,null,null,null,null,{"$error":"#DIV/0!"},{"$error":"#DIV/0!"}]
[null,"x",null,null,null,null,null,null,{"$error":"#DIV/0!"},{"$error":"#DIV/0!"}]
[null,"x",null,null,null,null,null,null,{"$error":"#DIV/0!"},{"$error":"#DIV/0!"}]
[null,"x",null,null,null,null,null,null,{"$error":"#DIV/0!"},{"$error":"#DIV/0!"}]
[null,"x",null,null,null,null,null,null,{"$error":"#DIV/0!"},{"$error":"#DIV/0!"}]
[null,"x",null,null,null,null,null,null,{"$error":"#DIV/0!"},{"$error":"#DIV/0!"}]
[null,"x",null,null,null,null,null,null,{"$error":"#DIV/0!"},{"$error":"#DIV/0!"}]
[null,null,null,null,null,null,null,null,{"$error":"#DIV/0!"},{"$error":"#DIV/0!"}]
[null,null,null,null,null,null,null,null,{"$error":"#DIV/0!"},{"$error":"#DIV/0!"}]
[null,null,null,null,null,null,null,null,{"$error":"#DIV/0!"},{"$error":"#DIV/0!"}]
[null,"x",null,null,null,null,null,null,{"$error":"#DIV/0!"},{"$error":"#DIV/0!"}]
[null,null,null,null,null,null,null,null,{"$error":"#DIV/0!"},{"$error":"#DIV/0!"}]
[null,"x",null,null,null,null,null,null,{"$error":"#DIV/0!"},{"$error":"#DIV/0!"}]
[null,"x",null,null,null,null,null,null,{"$error":"#DIV/0!"},{"$error":"#DIV/0!"}]
[null,"x",null,null,null,null,null,null,{"$error":"#DIV/0!"},{"$error":"#DIV/0!"}]
[null,"x",null,null,null,null,null,null,{"$error":"#DIV/0!"},{"$error":"#DIV/0!"}]
[null,"x",null,null,null,null,null,null,{"$error":"#DIV/0!"},{"$error":"#DIV/0!"}]
[null,"x",null,null,null,null,null,null,{"$error":"#DIV/0!"},{"$error":"#DIV/0!"}]
[null,"x",null,null,null,null,null,null,{"$error":"#DIV/0!"},{"$error":"#DIV/0!"}]
[null,"x",null,null,null,null,null,null,{"$error":"#DIV/0!"},{"$error":"#DIV/0!"}]
[null,null,null,null,null,null,null,null,{"$error":"#DIV/0!"},{"$error":"#DIV/0!"}]
[null,"x",null,null,null,null,null,null,{"$error":"#DIV/0!"},{"$error":"#DIV/0!"}]
[null,"x",null,null,null,null,null,null,{"$error":"#DIV/0!"},{"$error":"#DIV/0!"}]
[null,"x",null,null,null,null,null,null,{"$f":"G69/H69","v":{"$error":"#DIV/0!"}},{"$f":"(I69-F69)/F69","v":{"$error":"#DIV/0!"}}]
[null,null,null,null,null,null,null,null,{"$error":"#DIV/0!"},{"$error":"#DIV/0!"}]
[null,"x",null,null,null,null,null,null,{"$error":"#DIV/0!"},{"$error":"#DIV/0!"}]
[null,null,null,null,null,null,null,null,{"$error":"#DIV/0!"},{"$error":"#DIV/0!"}]
[null,"x",null,null,null,null,null,null,{"$error":"#DIV/0!"},{"$error":"#DIV/0!"}]
[null,"x",null,null,null,null,null,null,{"$error":"#DIV/0!"},{"$error":"#DIV/0!"}]
[null,"x",null,null,null,null,null,null,{"$error":"#DIV/0!"},{"$error":"#DIV/0!"}]
[null,null,null,null,null,null,null,null,{"$error":"#DIV/0!"},{"$error":"#DIV/0!"}]
[null,"x",null,null,null,null,null,null,{"$error":"#DIV/0!"},{"$error":"#DIV/0!"}]
[null,null,null,null,null,null,null,null,{"$error":"#DIV/0!"},{"$error":"#DIV/0!"}]
[null,null,null,null,null,null,null,null,{"$error":"#DIV/0!"},{"$error":"#DIV/0!"}]
[null,"x",null,null,null,null,null,null,{"$error":"#DIV/0!"},{"$error":"#DIV/0!"}]
[null,"x",null,null,null,null,null,null,{"$error":"#DIV/0!"},{"$error":"#DIV/0!"}]
[null,"x",null,null,null,null,null,null,{"$error":"#DIV/0!"},{"$error":"#DIV/0!"}]
[null,"x",null,null,null,null,null,null,{"$error":"#DIV/0!"},{"$error":"#DIV/0!"}]
[null,null,null,null,null,null,null,null,{"$error":"#DIV/0!"},{"$error":"#DIV/0!"}]
[null,null,null,null,null,null,null,null,{"$error":"#DIV/0!"},{"$error":"#DIV/0!"}]
[null,"x",null,null,null,null,null,null,{"$error":"#DIV/0!"},{"$error":"#DIV/0!"}]
[null,"x",null,null,null,null,null,null,{"$error":"#DIV/0!"},{"$error":"#DIV/0!"}]
[null,"x",null,null,null,null,null,null,{"$error":"#DIV/0!"},{"$error":"#DIV/0!"}]
[null,"x",null,null,null,null,null,null,{"$error":"#DIV/0!"},{"$error":"#DIV/0!"}]
[null,"x",null,null,null,null,null,null,{"$error":"#DIV/0!"},{"$error":"#DIV/0!"}]
[null,"x",null,null,null,null,null,null,{"$error":"#DIV/0!"},{"$error":"#DIV/0!"}]
[null,"x",null,null,null,null,null,null,{"$error":"#DIV/0!"},{"$error":"#DIV/0!"}]
[null,"x",null,null,null,null,null,null,{"$error":"#DIV/0!"},{"$error":"#DIV/0!"}]
[null,null,null,null,null,null,null,null,{"$error":"#DIV/0!"},{"$error":"#DIV/0!"}]
[null,"x",null,null,null,null,null,null,{"$error":"#DIV/0!"},{"$error":"#DIV/0!"}]
[null,null,null,null,null,null,null,null,{"$error":"#DIV/0!"},{"$error":"#DIV/0!"}]
[null,"x",null,null,null,null,null,null,{"$error":"#DIV/0!"},{"$error":"#DIV/0!"}]
[null,"x",null,null,null,null,null,null,{"$error":"#DIV/0!"},{"$error":"#DIV/0!"}]
[null,null,null,null,null,null,null,null,{"$error":"#DIV/0!"},{"$error":"#DIV/0!"}]
[null,"x",null,null,null,null,null,null,{"$error":"#DIV/0!"},{"$error":"#DIV/0!"}]

{"sheet":"Dziennik","index":7,"n_rows":106,"n_cols":5,"rows_kept":106,"cut":false,"hidden":false,"merged":[]}
[null,"Dziennik projektu"]
[]
[null,"Miesiąc","Tydzień","Rodzaj informacji","Opis"]
[null,"Kwiecień","04-04-2016","Postęp projektu","Wartość liczbowa wyrażona w procentach."]
[null,"Kwiecień","04-04-2016","Status projektu","Opis słowny postępu w projekcie."]
[null,"Kwiecień","04-04-2016","Nadchodzące terminy","Należy uzupęłnić, jeśli zostały zaplanowane np. terminy odbioru etapów, spotkania, daty podjęcia określonych działań. Format: data - wydarzenie"]
[null,"Kwiecień","04-04-2016","Zasoby ","Sytuacja dotycząca zasobów zarówno ludzkich, jak i sprzętowych (niedobory, nadmierne alokacje itp.)"]
[null,"Kwiecień","04-04-2016","Zmiany ","Należy uzupełnić, jeśli zostały zgłoszone."]
[null,"Kwiecień","04-04-2016","Ryzyka i reakcje ","Należy uzupełnić, jeśli zostały zgłoszone."]
[null,"Kwiecień","04-04-2016","Testy","Jeśli się rozpoczęły, należy opisać ich status."]
[null,"Kwiecień","04-04-2016","Współpraca z podwykonawcami","Opis słowny dotyczący współpracy (relacji, wywiązaywania się ze zeobowiązań itp.)"]
[null,"Kwiecień","11-04-2016","Postęp "]
[null,"Kwiecień","11-04-2016","Status projektu"]
[null,"Kwiecień","11-04-2016","Nadchodzące terminy"]
[null,"Kwiecień","11-04-2016","Zasoby "]
[null,"Kwiecień","11-04-2016","Zmiany "]
[null,"Kwiecień","11-04-2016","Ryzyka i reakcje "]
[null,"Kwiecień","11-04-2016","Współpraca z UC4"]
[null,"Kwiecień","18-04-2016","Postęp "]
[null,"Kwiecień","18-04-2016","Status projektu"]
[null,"Kwiecień","18-04-2016","Nadchodzące terminy"]
[null,"Kwiecień","18-04-2016","Zasoby "]
[null,"Kwiecień","18-04-2016","Zmiany "]
[null,"Kwiecień","18-04-2016","Ryzyka i reakcje "]
[null,"Kwiecień","18-04-2016","Testy"]
[null,"Kwiecień","18-04-2016","Współpraca z podwykonawcami"]
[null,"Kwiecień","25-04-2016","Postęp "]
[null,"Kwiecień","25-04-2016","Status projektu"]
[null,"Kwiecień","25-04-2016","Nadchodzące terminy"]
[null,"Kwiecień","25-04-2016","Zasoby "]
[null,"Kwiecień","25-04-2016","Zmiany "]
[null,"Kwiecień","25-04-2016","Ryzyka i reakcje "]
[null,"Kwiecień","25-04-2016","Testy"]
[null,"Kwiecień","25-04-2016","Współpraca z podwykonawcami"]
[null,"Maj",null,"Postęp "]
[null,"Maj",null,"Status projektu"]
[null,"Maj",null,"Nadchodzące terminy"]
[null,"Maj",null,"Zasoby "]
[null,"Maj",null,"Zmiany "]
[null,"Maj",null,"Ryzyka i reakcje "]
[null,"Maj",null,"Testy"]
[null,"Maj",null,"Współpraca z podwykonawcami"]
[null,"Maj",null,"Postęp "]
[null,"Maj",null,"Status projektu"]
[null,"Maj",null,"Nadchodzące terminy"]
[null,"Maj",null,"Zasoby "]
[null,"Maj",null,"Zmiany "]
[null,"Maj",null,"Ryzyka i reakcje "]
[null,"Maj",null,"Testy"]
[null,"Maj",null,"Współpraca z podwykonawcami"]
[null,"Maj",null,"Postęp "]
[null,"Maj",null,"Status projektu"]
[null,"Maj",null,"Nadchodzące terminy"]
[null,"Maj",null,"Zasoby "]
[null,"Maj",null,"Zmiany "]
[null,"Maj",null,"Ryzyka i reakcje "]
[null,"Maj",null,"Testy"]
[null,"Maj",null,"Współpraca z podwykonawcami"]
[null,"Maj",null,"Postęp "]
[null,"Maj",null,"Status projektu"]
[null,"Maj",null,"Nadchodzące terminy"]
[null,"Maj",null,"Zasoby "]
[null,"Maj",null,"Zmiany "]
[null,"Maj",null,"Ryzyka i reakcje "]
[null,"Maj",null,"Testy"]
[null,"Maj",null,"Współpraca z podwykonawcami"]
[null,"Maj",null,"Postęp "]
[null,"Maj",null,"Status projektu"]
[null,"Maj",null,"Nadchodzące terminy"]
[null,"Maj",null,"Zasoby "]
[null,"Maj",null,"Zmiany "]
[null,"Maj",null,"Ryzyka i reakcje "]
[null,"Maj",null,"Testy"]
[null,"Maj",null,"Współpraca z podwykonawcami"]
[null,"Czerwiec",null,"Postęp "]
[null,"Czerwiec",null,"Status projektu"]
[null,"Czerwiec",null,"Nadchodzące terminy"]
[null,"Czerwiec",null,"Zasoby "]
[null,"Czerwiec",null,"Zmiany "]
[null,"Czerwiec",null,"Ryzyka i reakcje "]
[null,"Czerwiec",null,"Testy"]
[null,"Czerwiec",null,"Współpraca z podwykonawcami"]
[null,"Czerwiec",null,"Postęp "]
[null,"Czerwiec",null,"Status projektu"]
[null,"Czerwiec",null,"Nadchodzące terminy"]
[null,"Czerwiec",null,"Zasoby "]
[null,"Czerwiec",null,"Zmiany "]
[null,"Czerwiec",null,"Ryzyka i reakcje "]
[null,"Czerwiec",null,"Testy"]
[null,"Czerwiec",null,"Współpraca z podwykonawcami"]
[null,"Czerwiec",null,"Postęp "]
[null,"Czerwiec",null,"Status projektu"]
[null,"Czerwiec",null,"Nadchodzące terminy"]
[null,"Czerwiec",null,"Zasoby "]
[null,"Czerwiec",null,"Zmiany "]
[null,"Czerwiec",null,"Ryzyka i reakcje "]
[null,"Czerwiec",null,"Testy"]
[null,"Czerwiec",null,"Współpraca z podwykonawcami"]
[null,"Czerwiec",null,"Postęp "]
[null,"Czerwiec",null,"Status projektu"]
[null,"Czerwiec",null,"Nadchodzące terminy"]
[null,"Czerwiec",null,"Zasoby "]
[null,"Czerwiec",null,"Zmiany "]
[null,"Czerwiec",null,"Ryzyka i reakcje "]
[null,"Czerwiec",null,"Testy"]
[null,"Czerwiec",null,"Współpraca z podwykonawcami"]

{"sheet":"Lista ryzyk","index":8,"n_rows":21,"n_cols":16,"rows_kept":21,"cut":false,"hidden":false,"merged":[[3,11,5,11],[7,13,8,15]]}
[null,"Lista ryzyk"]
[]
[null,"Ryzyko","Opis","Autor zgłoszenia","Data zgłoszenia","Wpływ na projekt","Prawdopodobieństwo wystąpienia","Ocena ryzyka","Reakcja na ryzyko","Uwagi"]
[null,null,null,null,null,null,null,"A",null,null,null,"Wpływ na projekt","Wysoki","C","D","E"]
[null,null,null,null,null,null,null,"B",null,null,null,null,"Średni","B","C","D"]
[null,null,null,null,null,null,null,"C",null,null,null,null,"Niski","A","B","C"]
[null,null,null,null,null,null,null,"D",null,null,null,null,null,"Niskie","Średnie","Wysokie"]
[null,null,null,null,null,null,null,"E",null,null,"unikanie",null,null,"Prawdopodobieństwo wystąpienia"]
[null,null,null,null,null,null,null,null,null,null,"redukowanie"]
[null,null,null,null,null,null,null,null,null,null,"przeniesienie",null,"A"]
[null,null,null,null,null,null,null,null,null,null,"współdzielenie",null,"B"]
[null,null,null,null,null,null,null,null,null,null,"akceptacja",null,"C"]
[null,null,null,null,null,null,null,null,null,null,null,"zmiana","D"]
[null,null,null,null,null,null,null,null,null,null,null,"wsparcie","E"]
[null,null,null,null,null,null,null,null,null,null,null,"odstępstwo"]
[null,null,null,null,null,null,null,null,null,null,null,"problem / obawa"]
[null,null,null,null,null,null,null,null,null,null,null,"rozszerzenie zakresu"]
[]
[null,null,null,null,null,null,null,null,null,null,null,"niski"]
[null,null,null,null,null,null,null,null,null,null,null,"średni"]
[null,null,null,null,null,null,null,null,null,null,null,"wysoki"]

{"sheet":"Lista zmian","index":9,"n_rows":21,"n_cols":11,"rows_kept":21,"cut":false,"hidden":false,"merged":[]}
[null,"Lista zmian"]
[]
[null,"Zmiana","Opis","Autor zmiany","Data zgłoszenia","Wpływ na projekt","Wpływ na harmonogram","Wpływ na budżet","Uwagi"]
[null,null,null,null,null,null,null,null,null,null,"nowe"]
[null,null,null,null,null,null,null,null,null,null,"nierozpoczęte"]
[null,null,null,null,null,null,null,null,null,null,"w toku"]
[null,null,null,null,null,null,null,null,null,null,"odrzucone"]
[null,null,null,null,null,null,null,null,null,null,"wykonane"]
[]
[]
[]
[]
[null,null,null,null,null,null,null,null,null,null,"zmiana"]
[null,null,null,null,null,null,null,null,null,null,"wsparcie"]
[null,null,null,null,null,null,null,null,null,null,"odstępstwo"]
[null,null,null,null,null,null,null,null,null,null,"problem / obawa"]
[null,null,null,null,null,null,null,null,null,null,"rozszerzenie zakresu"]
[]
[null,null,null,null,null,null,null,null,null,null,"niski"]
[null,null,null,null,null,null,null,null,null,null,"średni"]
[null,null,null,null,null,null,null,null,null,null,"wysoki"]

{"sheet":"Zadania do wykonania","index":10,"n_rows":13,"n_cols":10,"rows_kept":13,"cut":false,"hidden":false,"merged":[]}
[null,"Lista zadań do wykonania w projekcie"]
[]
[null,"Zadanie","Data zgłoszenia","Priorytet","Właściciel zadania","Termin wykonania","Status","Uwagi"]
[]
[null,null,null,null,null,null,null,null,null,"nowe"]
[null,null,null,null,null,null,null,null,null,"nierozpoczęte"]
[null,null,null,null,null,null,null,null,null,"w toku"]
[null,null,null,null,null,null,null,null,null,"odrzucone"]
[null,null,null,null,null,null,null,null,null,"wykonane"]
[]
[null,null,null,null,null,null,null,null,null,"niski"]
[null,null,null,null,null,null,null,null,null,"średni"]
[null,null,null,null,null,null,null,null,null,"wysoki"]

{"sheet":"Zagadnienia projektowe","index":11,"n_rows":21,"n_cols":11,"rows_kept":21,"cut":false,"hidden":false,"merged":[]}
[null,"Zagadnienia projektowe"]
[]
[null,"Zagadnienie","Opis","Typ zagadnienia","Autor zgłoszenia","Data zgłoszenia","Wpływ na projekt","Data zamknięcia","Uwagi"]
[null,null,null,null,null,null,null,null,null,null,"nowe"]
[null,null,null,null,null,null,null,null,null,null,"nierozpoczęte"]
[null,null,null,null,null,null,null,null,null,null,"w toku"]
[null,null,null,null,null,null,null,null,null,null,"odrzucone"]
[null,null,null,null,null,null,null,null,null,null,"wykonane"]
[]
[]
[]
[]
[]
[null,null,null,null,null,null,null,null,null,null,"wsparcie"]
[null,null,null,null,null,null,null,null,null,null,"odstępstwo"]
[null,null,null,null,null,null,null,null,null,null,"problem / obawa"]
[null,null,null,null,null,null,null,null,null,null,"inne"]
[]
[null,null,null,null,null,null,null,null,null,null,"niski"]
[null,null,null,null,null,null,null,null,null,null,"średni"]
[null,null,null,null,null,null,null,null,null,null,"wysoki"]